Cogmind - Beta 13 @@@ ROGUE MODE // 2024.07.18 @ 01:11:18 Player: ivanmixo Result: Self-destructed Performance ------------- Evolutions (1) 500 Regions Visited (2) 400 Robots Destroyed (26) 130 Value Destroyed (444) 444 Prototype IDs (0) 0 Alien Tech Used (0) 0 Bonus (0) 0 TOTAL SCORE: 1474 Bonus ------- None Cogmind --------- Core Integrity 290/400 Matter 300/300 Energy 100/100 System Corruption 0% Temperature Cool (0) Movement Walking (260) Ox2 Location -9/Materials Parts ------- > --- POWER (1) -------- (None) > --- PROPULSION (2) --- Aluminum Leg Wheel > --- UTILITY (3) ------ Large Storage Unit Visual Processing Unit High-powered Tractor Beam > --- WEAPON (3) ------- Beam Cannon Assault Rifle Assault Rifle > --- INVENTORY (15) --- Assault Rifle Assault Rifle Assault Rifle Assault Rifle Mining Claw Peak State ------------ > --- POWER ------------ (None) > --- PROPULSION ------- Flight Unit Flight Unit > --- UTILITY ---------- Large Storage Unit Visual Processing Unit High-powered Tractor Beam > --- WEAPON ----------- Beam Cannon Assault Rifle Assault Rifle > --- INVENTORY -------- Assault Rifle Assault Rifle Assault Rifle Assault Rifle Mining Claw [Rating: 10] Favorites ----------- Power Ion Engine Engine Ion Engine Propulsion Light Treads Treads Light Treads Leg Aluminum Leg Wheel Wheel Flight Unit Flight Unit Utility Large Storage Unit Device Terrain Scanner Storage Large Storage Unit Processor Visual Processing Unit Weapon Assault Rifle Energy Cannon Beam Cannon Ballistic Gun Assault Rifle Slashing Weapon Mining Claw Build | -11 -10 -9 ------- Run | Yrd Mat Mat Slots Evolved 2 | . . 2 Power . | . . . Propulsion . | . . . Utility 1 | . . 1 Weapon 1 | . . 1 Parts Attached 24 | 5 11 8 Power 2 | 2 . . Engine 2 | 2 . . Core . | . . . Reactor . | . . . Propulsion 6 | 2 . 4 Treads 2 | 2 . . Leg 1 | . . 1 Wheel 1 | . . 1 Hover . | . . . Flight 2 | . . 2 Utility 4 | . 3 1 Device 2 | . 1 1 Storage 1 | . 1 . Processor 1 | . 1 . Hackware . | . . . Protection . | . . . Artifact . | . . . Weapon 12 | 1 8 3 Energy Gun . | . . . Energy Cannon 1 | . . 1 Ballistic Gun 9 | 1 6 2 Ballistic Cannon . | . . . Launcher . | . . . Special Weapon . | . . . Impact Weapon . | . . . Slashing Weapon 2 | . 2 . Piercing Weapon . | . . . Special Melee Weapon . | . . . Unidentified Prototypes . | . . . Parts Lost 6 | . 1 5 Power 1 | . . 1 Propulsion 2 | . . 2 Utility 1 | . 1 . Weapon 2 | . . 2 Highest Loss Streak 4 | . 1 4 To Critical Strikes . | . . . Average Slot Usage (%) 80 | . 86 68 Engine 10 | . 14 2 Treads 22 | . 28 10 Flight 1 | . . 5 Device 4 | . 5 3 Storage 10 | . 10 11 Processor 3 | . . 11 Energy Cannon 1 | . . 5 Ballistic Gun 22 | . 25 16 Naked Turns . | . . . Heaviest Build 30 | 6 30 29 Greatest Support 40 | 40 40 40 Greatest Overweight (x) 7 | . . 7 Average Overweight (x) . | . . 1 Largest Inventory Capacity 15 | 5 15 15 Average Capacity 12 | 5 12 15 Most Carried 8 | 3 8 8 Average Carried 5 | . 5 7 Final Capacity 15 | 5 15 15 Final Carried 8 | . 8 5 Class Distribution -------------------- 89% | Mutant 10% | Skirmisher Dominant Class ---------------- Mutant | -10/Materials Mutant | -9/Materials Resources | -11 -10 -9 ----------- Run | Yrd Mat Mat Matter Collected 777 | 192 235 350 Remotely 156 | . . 156 Salvage Created 647 | . 235 412 Parts 46 | . 23 23 Haulers Intercepted . | . . . Recyclers Shooed 2 | . 1 1 Parts Field Recycled . | . . . Retrieved Matter . | . . . Parts Self-Destructed . | . . . Prevented . | . . . Kills | -11 -10 -9 ------- Run | Yrd Mat Mat Combat Hostiles Destroyed 22 | . 11 11 Guns 21 | . 11 10 Cannons 1 | . . 1 Classes Destroyed 5 | . 3 2 Recycler 1 | . . 1 Watcher 3 | . 2 1 Swarmer 15 | . 9 6 Grunt 6 | . 2 4 Brawler 1 | . . 1 Best Kill Streak 7 | . 3 7 Combat Bots Only 6 | . 3 6 Max Kills in Single Turn 2 | . 1 2 Gunslinging . | . . . Exploded . | . . . Melee . | . . . Uniques/NPCs Destroyed . | . . . Combat | -11 -10 -9 -------- Run | Yrd Mat Mat Hostile Shots Fired 165 | . 80 85 Missed 57 | . 22 35 Damage Taken 919 | . 499 420 Core 249 | . 139 110 Absorbed by Shields . | . . . Core Remaining (%) 72 | 100 44 . Volleys Fired 93 | . 48 45 Largest 3 | . 2 3 Hottest 100 | . 40 100 Shots Fired 172 | . 82 90 Gun 156 | . 82 74 Cannon 16 | . . 16 Launcher . | . . . Special . | . . . Kinetic 156 | . 82 74 Thermal 16 | . . 16 Explosive . | . . . Electromagnetic . | . . . Robot Hit Streak 7 | . 4 7 Robot Miss Streak 7 | . 4 7 Penetration Max . | . . . Secondary Targets 5 | . 3 2 Max Gunslinging Chain 1 | . 1 1 Shots Hit Robots 81 | . 34 47 Core Hits 36 | . 18 18 Critical Kills . | . . . Critical Parts Destroyed . | . . . Critical Strikes . | . . . Melee Attacks 8 | . 8 . Impact . | . . . Slashing 8 | . 8 . Piercing . | . . . Sneak Attacks . | . . . Combat Hostiles . | . . . Follow-up Attacks . | . . . Damage Inflicted 1129 | . 443 686 Guns 899 | . 409 490 Cannons 194 | . . 194 Explosions . | . . . Melee . | . . . Ramming 36 | . 34 2 Kinetic 899 | . 409 490 Thermal 194 | . . 194 Explosive . | . . . Electromagnetic . | . . . Impact . | . . . Slashing . | . . . Piercing . | . . . Highest Corruption 2 | . 2 . Average Corruption 1 | . 1 . Corruption Purged . | . . . Corruption Blocked . | . . . Effects 8 | . 8 . Message Errors 1 | . 1 . Matter Fused 3 | . 3 . Heat Flow Errors 1 | . 1 . Energy Discharges 2 | . 2 . Data Loss (minor) 1 | . 1 . Overload Shots . | . . . Overflow Damage 13 | . . 13 Projectiles 13 | . . 13 Explosions . | . . . Melee . | . . . Knockbacks . | . . . Impact . | . . . Kinetic . | . . . Secondary . | . . . Self-Inflicted Damage 1 | . . 1 Shots . | . . . Rammed 16 | . 15 1 Targets Rammed 16 | . 15 1 Kicked . | . . . Crushed . | . . . Highest Temperature 214 | . 214 160 Average Temperature 67 | . 109 57 Received Heat Transfer 90 | . 42 48 Siege Activations . | . . . Robots Corrupted . | . . . Combat Hostiles . | . . . Parts Fried . | . . . Impact Corruptions . | . . . Robots Melted . | . . . Combat Hostiles . | . . . Parts Melted 1 | . . 1 Heat Transferred 407 | . . 407 Parts Sabotaged . | . . . Parts Stolen . | . . . Parts Stripped . | . . . Power Chain Reactions . | . . . Alert | -11 -10 -9 ------- Run | Yrd Mat Mat Peak Influence 242 | . 151 242 Initial 5 | . . 5 Average 79 | . 75 102 Maximum Alert Level 1 | . . 1 Low Security (%) 95 | 100 100 85 Level 1 4 | . . 14 Level 2 . | . . . Level 3 . | . . . Level 4 . | . . . Level 5 . | . . . High Security . | . . . Max Security . | . . . Squads Dispatched 4 | . 2 2 Investigation 2 | . 1 1 Extermination . | . . . Reinforcement 2 | . 1 1 Assault . | . . . Garrison . | . . . Intercept . | . . . Searches Triggered . | . . . Construction Impeded . | . . . Haulers Reinforced . | . . . Active Scanning Responses . | . . . Cargo Convoy Interrupts . | . . . Stealth | -11 -10 -9 --------- Run | Yrd Mat Mat Distress Signals 2 | . . 2 Communications Jammed . | . . . Distress Signals . | . . . Times Spotted 38 | . 21 17 Peak Tracking Total 6 | . 3 6 Tactical Retreats . | . . . Traps | -11 -10 -9 ------- Run | Yrd Mat Mat Traps Triggered 4 | . 3 1 Indirectly . | . . . Trap Hack Attempts . | . . . Triggered . | . . . Disarmed . | . . . Reprogrammed . | . . . Reused . | . . . Traps Extracted . | . . . Installed . | . . . Triggered . | . . . Machines | -11 -10 -9 ---------- Run | Yrd Mat Mat Machines Disabled 1 | . . 1 Max in Single Turn 1 | . . 1 Machines Repaired . | . . . Machines Dismantled . | . . . Machines Sabotaged . | . . . Overloaded Fab Kills . | . . . Hacking | -11 -10 -9 --------- Run | Yrd Mat Mat Machines Accessed 2 | . 1 1 Terminals 2 | . 1 1 Fabricators . | . . . Repair Stations . | . . . Recycling Units . | . . . Scanalyzers . | . . . Garrison Access . | . . . Total Hacks 6 | . 2 4 Successful 1 | . . 1 Failed 5 | . 2 3 Catastrophic . | . . . Database Lockouts . | . . . Manual 11 | . 6 5 Terminals 6 | . 2 4 Fabricators . | . . . Repair Stations . | . . . Recycling Units . | . . . Scanalyzers . | . . . Garrison Access . | . . . Terminal Hacks 1 | . . 1 Recall Investigation 1 | . . 1 Fabricator Hacks . | . . . Repair Station Hacks . | . . . Recycling Unit Hacks . | . . . Scanalyzer . | . . . Garrison Access Hacks . | . . . Unauthorized Hacks . | . . . Terminals . | . . . Fabricators . | . . . Repair Stations . | . . . Recycling Units . | . . . Scanalyzers . | . . . Garrison Access . | . . . Data Cores Recovered . | . . . Used . | . . . Hacking Detections 2 | . 1 1 Full Trace Events . | . . . Feedback Events . | . . . Feedback Blocked . | . . . Robot Schematics Acquired . | . . . Robots Built . | . . . Authchips . | . . . Time . | . . . Total Robot Build Rating . | . . . Part Schematics Acquired . | . . . Parts Built . | . . . Authchips . | . . . Time . | . . . Total Part Build Rating . | . . . Parts Repaired . | . . . Time . | . . . Parts Recycled . | . . . Recycled Matter . | . . . Retrieved Matter . | . . . Retrieved Components . | . . . Parts Scanalyzed . | . . . Part Schematics Acquired . | . . . Parts Damaged . | . . . Bothacking | -11 -10 -9 ------------ Run | Yrd Mat Mat Used RIF Installer . | . . . Robots Hacked . | . . . Non-combat . | . . . Combat . | . . . Robot Hacks Applied . | . . . Relay Couplers Released . | . . . Fabnet Peak Effective % . | . . . Robots Rewired . | . . . Allies Hacked . | . . . Hacks Repelled . | . . . Allies | -11 -10 -9 -------- Run | Yrd Mat Mat Total Allies . | . . . Largest Group . | . . . Highest-Rated Group . | . . . Highest-Rated Ally . | . . . Total Orders . | . . . Ally Attacks . | . . . Total Damage . | . . . Kills . | . . . Allies Corrupted . | . . . Allies Melted . | . . . Intel | -11 -10 -9 ------- Run | Yrd Mat Mat Robot Analysis Total . | . . . Derelict Logs Recovered . | . . . Drone Launches . | . . . Drone Recoveries . | . . . Exploration | -11 -10 -9 ------------- Run | Yrd Mat Mat Turns Passed 1446 | 57 976 413 Spaces Moved 658 | 41 483 134 Core 23 | 16 . 7 Treads 590 | 25 483 82 Legs 16 | . . 16 Wheels 3 | . . 3 Hover . | . . . Flight 26 | . . 26 Fastest Speed 50 | 50 160 110 Average Speed 165 | 117 160 201 Slowest Speed 440 | 160 160 440 Overloaded Moves . | . . . Propulsion Burnouts . | . . . Robots Hopped . | . . . Cave-ins Triggered . | . . . Exploration Rate (%) 35 | 4 83 19 Regions Visited 2 Branch Regions . Pre-discovered Areas . | . . . Known Exits Taken . | . . . Unknown Exits Taken 2 | 1 1 . Scrap Searched . | . . . Spaces Dug 6 | . 6 . Terrain Destroyed 6 | . 6 . Melee 6 | . 6 . Projectile . | . . . AOE . | . . . Terrain Rammed . | . . . Walls Destroyed . | . . . Machines Disabled . | . . . Actions | -11 -10 -9 --------- Run | Yrd Mat Mat Total 822 | 50 582 190 Wait 7 | . 7 . Move 657 | 40 483 134 Hop . | . . . Pick Up 12 | 4 8 . Fast Attach 11 | . 6 5 Attach 8 | 4 1 3 Detach 1 | . 1 . Swap 5 | 1 4 . Drop 5 | 1 2 2 Fire 93 | . 48 45 Melee 8 | . 8 . Ram 1 | . . 1 Kick . | . . . Crush 14 | . 14 . Escape Stasis . | . . . Rewire . | . . . Trap . | . . . Miscellaneous . | . . . Route ------- -11/Scrapyard -10/Materials (discovered 4 exits: *Mat x3 / [*Min]) -9/Materials (discovered 1 exit: [*Min]) History --------- Turn | Location | Event 12 | -11/Scrapyard | Discovered new exit (range 14) 58 | -11/Scrapyard | Entered Materials 251 | -10/Materials | Discovered new exit (range 12) 302 | -10/Materials | Build established: Mutant 480 | -10/Materials | Discovered new exit (range 4) 662 | -10/Materials | Discovered new exit (range 7) 733 | -10/Materials | Core integrity fell below 50% 743 | -10/Materials | Discovered new exit (range 10) 1034 | -10/Materials | Entered another Materials area 1034 | -9/Materials | Evolved 2 slots: Utility x1, Weapon x1 1179 | -9/Materials | Discovered new exit (range 18) 1280 | -9/Materials | Lost 4 parts (2n2w) 1447 | -9/Materials | Self-destructed Last Messages --------------- 01405_ R-06 Scavenger collects Structural Scanner. 01406_ R-06 Scavenger collects Lgt. Ion Engine. 01410_ R-06 Scavenger collects Hammer. 01414_ R-06 Scavenger collects Welding Torch. 01416_ Triggered Alarm Trap. 01416_ An alarm sounds. 01416_ ALERT: Alarm triggered, dispatching investigation squad. 01418_ U-05 Engineer lays Concrete. 01429_ K-01 Serf collects debris. 01433_ R-06 Scavenger collects Lgt. Armor Plating. 01436_ K-01 Serf collects debris. 01437_ R-06 Scavenger collects Flight Unit. 01439_ K-01 Serf collects debris. 01447_ Connecting with Terminal... >>Recall(Investigation) Establishing remote squad link... Recalled investigation squad AEYWT9A31Z. Map ----- +----------------------------------------------------+ | ?????????????????????????????????????????????????? | | ?????????????????????????????????????????????????? | | ?????????????????????????????????????????????????? | | ?????????????????????????????????????????????????? | | ?????????????????????????????????????????????????? | | ?????????????????????????????????????????????????? | | ?????????????????????????????????????????????????? | | ?????????????????????????????????????????????????? | | ?????????????????????????????????????????????????? | | ?????????????????????????????????????????????????? | | ?????????????????????????????????????????????????? | | ?????????????????????????????????????????????????? | | ?????????????????????????????????????????????????? | | ?????????????????????????????????????????????????? | | ?????????????????????????????????????????????????? | | ?????????????????????????????????????????????????? | | ?????????????????????????????????????????????????? | | ?????????????????????????????????? ??????????????? | | ????????????????????????????????? #??????????????? | | ????????????????????????????????? #??????????????? | | ?????????????????????#########?? #??????????????? | | ?????????????????????# #? #??????????????? | | ?????????????????????# ## #??????????????? | | ?????????????????????# #?????????????## | | ?????????????????????# T u #?????????????# | | ?????????????????????# @ #?????????????# | | ?????????????????????# ##+###?????????????# | | ?????????????????????# #??????????????????# | | ?????????????????????### ###??????????????????# | | ???????????????????????# #????????????????????# | | ??????????????????###??# #????????########????# | | ??????????????????? ?# u #????????# #????# | | ????????????????????" # #????????# #???### | | ????????????????????? # #????????# !! #???# | | ?????????????????????? + ########## !! #???# | | ????????????????????? # ##""!"| "# ! #???# | | ???????????????????? # ## "!"|" # #???# | | ?????????????########+## ## ##+######### | | ????????"" %k% | | ????????T" % % == < [ | | ????????"" a =*% = | | ?????????" ####+####o## # #####+# | | ???????? ?????????? ######### ## | | ????????? ???????????? ????????#//!!!!## " | | ????????????????????????? #???????#//!!!!## " | | ????????????????????????? #???????######### | | ????????????????????????? = #???????????????# | | ????????????????????????? #???????????????#""" | | ????????????????????????# #???????????????#""" | | ????????????????????????#/###???????????????#""" | +----------------------------------------------------+ Best States ------------- Heat Dissipation 28 Energy Generation 10 Energy Capacity 250 Matter Stores 300 Matter Capacity 300 Sight Range 18 Terrain Scan Range 14 Terrain Scan Density 10 Evasion (%) 50 Recoil Reduction 2 Item Schematics ----------------- None Robot Schematics ------------------ None Fabricated ------------ Nothing Alien Tech Used ----------------- None Achievements -------------- Use The Force Challenges ------------ None Game ------ Seed MappingCargoMonowheel Manual? 0 Play Time 00:16:45 Cumulative 5.4 hours Start 2024.07.18 @ 00:50:57 End 2024.07.18 @ 01:11:18 Sessions 3 Manual Loads 0 Difficulty Rogue Special Mode None Game No. 10 Rogue 10 Adventurer 0 Explorer 0 Win Type - Total 0 Types 0/0/0/0/0/0/0/0/0 Lore% 1 Gallery% 11 Achievement% 9 Wizard Run 0 Options --------- Layout 1 ASCII 0 Keyboard 0 Movement Numpad Keybinds 0 Fullscreen 2 Font 24/Smallcaps Map View 50x35 Zoom Use 0% Tactical HUD 1 Map Filters NONE Filters NONE Steam 1 RUN: ff0b4c75-1218-4cad-8e6b-17ee48e71d42